fUSD/lending_fUSD_20240409
["ID","MTS","AMOUNT","RATE_DAILY","PERIOD"]
[321953402,1712650239793,-500.0,0.00020821,2]
[321953405,1712650239802,-1387.1,0.00020821,2]
[321953407,1712650239811,-500.0,0.00020821,2]
[321953410,1712650239823,-500.0,0.00020821,2]
[321953413,1712650239832,-500.0,0.00020821,2]
[321953415,1712650239841,-500.0,0.00020821,2]
[321953417,1712650239850,-1817.39,0.00020821,2]
[321953419,1712650239861,-500.0,0.00020821,2]
[321953421,1712650239872,-500.0,0.00020821,2]
[321953423,1712650239882,-1084.85,0.00020821,2]
[321953425,1712650239891,-697.35,0.00020821,2]
[321953428,1712650239901,-500.0,0.00020821,2]
[321953430,1712650239910,-500.0,0.00020821,2]
[321953432,1712650239919,-500.0,0.00020821,2]
[321953433,1712650239928,-500.0,0.00020821,2]
[321953436,1712650239938,-500.0,0.00020821,2]
[321953438,1712650239949,-500.0,0.00020821,2]
[321953440,1712650239958,-500.0,0.00020821,2]
[321953442,1712650239967,-1016.11,0.00020821,2]
[321953444,1712650239977,-500.0,0.00020821,2]
[321953446,1712650239987,-500.0,0.00020821,2]
[321953448,1712650239997,-573.88683207,0.00020821,2]
[321953450,1712650240007,-854.23,0.00020821,2]
[321953452,1712650240017,-505.87669416,0.00020821,2]
[321953454,1712650240028,-500.0,0.00020821,2]
[321953455,1712650240039,-500.0,0.00020821,2]
[321953458,1712650240049,-500.0,0.00020821,2]
[321953460,1712650240059,-500.0,0.00020821,2]
[321953462,1712650240086,-500.0,0.00020821,2]
[321953464,1712650240096,-500.0,0.00020821,2]
[321953466,1712650240105,-500.0,0.00020821,2]
[321953468,1712650240115,-500.0,0.00020821,2]
[321953469,1712650240124,-572.56,0.00020821,2]
[321953471,1712650240135,-500.0,0.00020821,2]
[321953473,1712650240146,-521.54,0.00020821,2]
[321953475,1712650240157,-500.0,0.00020821,2]
[321953477,1712650240167,-810.92,0.00020821,2]
[321953479,1712650240177,-500.0,0.00020821,2]
[321953482,1712650240186,-500.0,0.00020821,2]
[321953483,1712650240196,-500.0,0.00020821,2]
[321953485,1712650240206,-500.0,0.00020821,2]
[321953487,1712650240215,-500.0,0.00020821,2]
[321953489,1712650240225,-660.1,0.00020821,2]
[321953492,1712650240234,-500.0,0.00020821,2]
[321953493,1712650240243,-841.79,0.00020821,2]
[321953496,1712650240254,-520.40637134,0.00020821,2]
[321953498,1712650240264,-1203.54,0.00020821,2]
[321953499,1712650240274,-500.0,0.00020821,2]
[321953501,1712650240283,-500.0,0.00020821,2]
[321953504,1712650240293,-500.0,0.00020821,2]
[321953505,1712650240302,-992.59,0.00020821,2]
[321953508,1712650240314,-500.0,0.00020821,2]
[321953510,1712650240323,-500.0,0.00020821,2]
[321953512,1712650240332,-500.0,0.00020821,2]
[321953514,1712650240341,-500.0,0.00020821,2]
[321953516,1712650240350,-500.0,0.00020821,2]
[321953518,1712650240359,-500.0,0.00020821,2]
[321953520,1712650240368,-500.0,0.00020821,2]
[321953522,1712650240378,-160.99717009,0.00020821,2]
[321953524,1712650240387,-500.0,0.00020821,2]
[321953526,1712650240396,-404.30901422,0.00020821,2]
[321953528,1712650240406,-500.0,0.00020821,2]
[321953530,1712650240415,-500.0,0.00020821,2]
[321953532,1712650240424,-500.0,0.00020821,2]
[321953534,1712650240433,-500.0,0.00020821,2]
[321953536,1712650240442,-500.0,0.00020821,2]
[321953538,1712650240452,-655.69,0.00020821,2]
[321953540,1712650240464,-500.0,0.00020821,2]
[321953542,1712650240476,-500.0,0.00020821,2]
[321953545,1712650240488,-500.0,0.00020821,2]
[321953547,1712650240500,-500.0,0.00020821,2]
[321953549,1712650240514,-681.67,0.00020821,2]
[321953551,1712650240525,-500.0,0.00020821,2]
[321953554,1712650240535,-540.01,0.00020821,2]
[321953556,1712650240546,-500.0,0.00020821,2]
[321953558,1712650240557,-500.0,0.00020821,2]
[321953560,1712650240571,-500.0,0.00020821,2]
[321953563,1712650240597,-500.0,0.00020821,2]
[321953565,1712650240608,-500.0,0.00020821,2]
[321953567,1712650240620,-500.0,0.00020821,2]
[321953569,1712650240631,-500.0,0.00020821,2]
[321953572,1712650240643,-629.6,0.00020821,2]
[321953574,1712650240654,-500.0,0.00020821,2]
[321953576,1712650240666,-500.0,0.00020821,2]
[321953578,1712650240677,-500.0,0.00020821,2]
[321953580,1712650240687,-500.0,0.00020821,2]
[321953583,1712650240698,-521.41,0.00020821,2]
[321953585,1712650240710,-500.0,0.00020821,2]
[321953587,1712650240721,-500.0,0.00020821,2]
[321953589,1712650240732,-500.0,0.00020821,2]
[321953591,1712650240743,-500.0,0.00020821,2]
[321953594,1712650240754,-500.0,0.00020821,2]
[321953596,1712650240765,-500.0,0.00020821,2]
[321953598,1712650240777,-193.59173287,0.00020821,2]
[321953600,1712650240788,-500.0,0.00020821,2]
[321953602,1712650240800,-594.4,0.00020821,2]
[321953605,1712650240810,-508.82072668,0.00020821,2]
[321953606,1712650240825,-500.0,0.00020821,2]
[321953607,1712650240835,-500.0,0.00020821,2]
[321953608,1712650240848,-500.0,0.00020821,2]
[321953609,1712650240860,-500.0,0.00020821,2]
[321953610,1712650240871,-1029.28,0.00020821,2]
[321953611,1712650240884,-500.0,0.00020821,2]
[321953612,1712650240895,-500.0,0.00020821,2]
[321953613,1712650240906,-500.0,0.00020821,2]
[321953614,1712650240917,-500.0,0.00020821,2]
[321953615,1712650240928,-527.3456872,0.00020821,2]
[321953617,1712650240938,-500.0,0.00020821,2]
[321953620,1712650240951,-500.0,0.00020821,2]
[321953622,1712650240963,-500.0,0.00020821,2]
[321953624,1712650240974,-500.0,0.00020821,2]
[321953626,1712650240986,-500.0,0.00020821,2]
[321953629,1712650240998,-500.0,0.00020821,2]
[321953631,1712650241010,-763.7,0.00020821,2]
[321953633,1712650241022,-1155.42,0.00020821,2]
[321953635,1712650241034,-500.0,0.00020821,2]
[321953638,1712650241046,-534.84,0.00020821,2]
[321953640,1712650241058,-500.0,0.00020821,2]
[321953642,1712650241071,-500.0,0.00020821,2]
[321953644,1712650241093,-858.89,0.00020821,2]
[321953646,1712650241102,-500.0,0.00020821,2]
[321953648,1712650241112,-500.0,0.00020821,2]
[321953650,1712650241124,-500.0,0.00020821,2]
[321953652,1712650241135,-500.0,0.00020821,2]
[321953655,1712650241147,-500.0,0.00020821,2]
[321953657,1712650241159,-500.0,0.00020821,2]
[321953659,1712650241170,-500.0,0.00020821,2]
[321953662,1712650241183,-612.17386381,0.00020821,2]
[321953664,1712650241197,-500.0,0.00020821,2]
[321953666,1712650241208,-500.0,0.00020821,2]
[321953668,1712650241219,-1190.37,0.00020821,2]
[321953670,1712650241229,-500.0,0.00020821,2]
[321953672,1712650241239,-500.0,0.00020821,2]
[321953674,1712650241249,-500.0,0.00020821,2]
[321953676,1712650241260,-500.0,0.00020821,2]
[321953679,1712650241271,-500.0,0.00020821,2]
[321953681,1712650241282,-512.86,0.00020821,2]
[321953683,1712650241293,-500.0,0.00020821,2]
[321953685,1712650241303,-500.0,0.00020821,2]
[321953687,1712650241313,-500.0,0.00020821,2]
[321953689,1712650241324,-500.0,0.00020821,2]
[321953691,1712650241335,-500.0,0.00020821,2]
[321953693,1712650241347,-500.0,0.00020821,2]
[321953696,1712650241365,-1184.93,0.00020821,2]
[321953698,1712650241376,-500.0,0.00020821,2]
[321953700,1712650241388,-500.0,0.00020821,2]
[321953702,1712650241399,-500.0,0.00020821,2]
[321953705,1712650241410,-500.0,0.00020821,2]
[321953707,1712650241422,-792.88,0.00020821,2]
[321953709,1712650241434,-467.09897675,0.00020821,2]
[321953711,1712650241446,-500.0,0.00020821,2]
[321953714,1712650241458,-500.0,0.00020821,2]
[321953716,1712650241470,-500.0,0.00020821,2]
[321953718,1712650241481,-1434.63,0.00020821,2]
[321953720,1712650241492,-500.0,0.00020821,2]
[321953722,1712650241502,-500.0,0.00020821,2]
[321953724,1712650241513,-500.0,0.00020821,2]
[321953727,1712650241524,-500.0,0.00020821,2]
[321953729,1712650241534,-792.54,0.00020821,2]
[321953731,1712650241545,-500.0,0.00020821,2]
[321953733,1712650241556,-500.0,0.00020821,2]
[321953736,1712650241567,-500.0,0.00020821,2]
[321953738,1712650241596,-839.94,0.00020821,2]
[321953740,1712650241606,-1393.44,0.00020821,2]
[321953742,1712650241617,-554.07073961,0.00020821,2]
[321953744,1712650241628,-709.17,0.00020821,2]
[321953747,1712650241639,-267.81975232,0.00020821,2]
[321953749,1712650241650,-500.0,0.00020821,2]
[321953751,1712650241661,-500.0,0.00020821,2]
[321953753,1712650241671,-500.0,0.00020821,2]
[321953755,1712650241682,-1175.42,0.00020821,2]
[321953757,1712650241693,-500.0,0.00020821,2]
[321953759,1712650241703,-500.0,0.00020821,2]
[321953761,1712650241714,-500.0,0.00020821,2]
[321953764,1712650241724,-4269.43,0.00020821,2]
[321953766,1712650241735,-1699.95,0.00020821,2]
[321953768,1712650241746,-500.0,0.00020821,2]
[321953770,1712650241756,-500.0,0.00020821,2]
[321953772,1712650241767,-501.62340238,0.00020821,2]
[321953774,1712650241777,-1064.66,0.00020821,2]
[321953776,1712650241789,-500.0,0.00020821,2]
[321953779,1712650241800,-500.0,0.00020821,2]
[321953781,1712650241810,-500.0,0.00020821,2]
[321953783,1712650241824,-500.0,0.00020821,2]
[321953785,1712650241835,-2318.58,0.00020821,2]
[321953787,1712650241845,-2045.25,0.00020821,2]
[321953789,1712650241856,-500.0,0.00020821,2]
[321953792,1712650241869,-2773.75,0.00020821,2]
[321953794,1712650241880,-310.22684289,0.00020821,2]
[321953796,1712650241891,-1836.93,0.00020821,2]
[321953798,1712650241903,-1906.39,0.00020821,2]
[321953800,1712650241913,-500.0,0.00020821,2]
[321953802,1712650241924,-500.0,0.00020821,2]
[321953805,1712650241935,-500.0,0.00020821,2]
[321953807,1712650241947,-500.0,0.00020821,2]
[321953809,1712650241958,-412.49053766,0.00020821,2]
[321953811,1712650241969,-500.0,0.00020821,2]
[321953813,1712650241980,-1252.27,0.00020821,2]
[321953815,1712650241991,-500.0,0.00020821,2]
[321953818,1712650242002,-500.0,0.00020821,2]
[321953820,1712650242014,-310.47990371,0.00020821,2]
[321953822,1712650242025,-500.0,0.00020821,2]
[321953824,1712650242036,-591.57,0.00020821,2]
[321953826,1712650242047,-500.0,0.00020821,2]
[321953828,1712650242058,-1230.47,0.00020821,2]
[321953830,1712650242075,-500.0,0.00020821,2]
[321953833,1712650242096,-856.76,0.00020821,2]
[321953835,1712650242107,-500.0,0.00020821,2]
[321953837,1712650242117,-500.0,0.00020821,2]
[321953839,1712650242128,-500.0,0.00020821,2]
[321953841,1712650242139,-799.32,0.00020821,2]
[321953843,1712650242151,-928.47,0.00020821,2]
[321953845,1712650242162,-500.0,0.00020821,2]
[321953848,1712650242174,-2427.06,0.00020821,2]
[321953850,1712650242185,-175.40735261,0.00020821,2]
[321953852,1712650242196,-2140.54,0.00020821,2]
[321953854,1712650242207,-1036.55,0.00020821,2]
[321953856,1712650242218,-1252.3,0.00020821,2]
[321953858,1712650242230,-500.0,0.00020821,2]
[321953861,1712650242241,-500.0,0.00020821,2]
[321953863,1712650242252,-951.92,0.00020821,2]
[321953865,1712650242264,-500.0,0.00020821,2]
[321953867,1712650242275,-559.121078,0.00020821,2]
[321953869,1712650242286,-821.64,0.00020821,2]
[321953872,1712650242298,-2289.17,0.00020821,2]
[321953874,1712650242308,-500.0,0.00020821,2]
[321953876,1712650242323,-535.65,0.00020821,2]
[321953879,1712650242335,-914.1,0.00020821,2]
[321953881,1712650242346,-502.56,0.00020821,2]
[321953883,1712650242356,-1942.51,0.00020821,2]
[321953885,1712650242367,-500.0,0.00020821,2]
[321953887,1712650242378,-621.47,0.00020821,2]
[321953889,1712650242389,-512.47024263,0.00020821,2]
[321953891,1712650242400,-500.0,0.00020821,2]
[321953894,1712650242411,-718.81,0.00020821,2]
[321953896,1712650242422,-1219.4,0.00020821,2]
[321953898,1712650242434,-600.82,0.00020821,2]
[321953900,1712650242445,-500.0,0.00020821,2]
[321953902,1712650242457,-500.0,0.00020821,2]
[321953904,1712650242468,-500.0,0.00020821,2]
[321953907,1712650242479,-500.0,0.00020821,2]
[321953909,1712650242491,-500.0,0.00020821,2]
[321953911,1712650242502,-1217.42,0.00020821,2]
[321953913,1712650242513,-532.89,0.00020821,2]
[321953915,1712650242524,-878.12,0.00020821,2]
[321953917,1712650242534,-500.0,0.00020821,2]
[321953920,1712650242545,-500.0,0.00020821,2]
[321953922,1712650242555,-2003.27,0.00020821,2]
[321953924,1712650242566,-856.28,0.00020821,2]
[321953926,1712650242595,-600.0,0.00020821,2]
[321953928,1712650242605,-990.48,0.00020821,2]
[321953930,1712650242616,-500.0,0.00020821,2]
[321953932,1712650242626,-500.0,0.00020821,2]
[321953935,1712650242637,-892.64,0.00020821,2]
[321953937,1712650242647,-818.49,0.00020821,2]
[321953939,1712650242657,-918.36,0.00020821,2]
[321953941,1712650242668,-548.03,0.00020821,2]
[321953943,1712650242679,-500.0,0.00020821,2]
[321953945,1712650242691,-500.0,0.00020821,2]
[321953948,1712650242702,-507.82132157,0.00020821,2]
[321953950,1712650242712,-798.23,0.00020821,2]
[321953952,1712650242722,-617.89,0.00020821,2]
[321953954,1712650242733,-2000.16,0.00020821,2]
[321953956,1712650242743,-1878.14,0.00020821,2]
[321953958,1712650242754,-671.48,0.00020821,2]
[321953961,1712650242764,-707.13,0.00020821,2]
[321953963,1712650242775,-500.0,0.00020821,2]
[321953965,1712650242785,-2537.29,0.00020821,2]
[321953967,1712650242796,-467.36518283,0.00020821,2]
[321953970,1712650242806,-500.0,0.00020821,2]
[321953972,1712650242820,-500.0,0.00020821,2]
[321953975,1712650242838,-500.0,0.00020821,2]
[321953978,1712650242859,-849.31,0.00020821,2]
[321953982,1712650242871,-1046.91,0.00020821,2]
[321953985,1712650242883,-500.0,0.00020821,2]
[321953989,1712650242895,-500.0,0.00020821,2]
[321953992,1712650242905,-500.0,0.00020821,2]
[321953995,1712650242915,-500.0,0.00020821,2]
[321953998,1712650242925,-500.0,0.00020821,2]
[321954001,1712650242936,-500.0,0.00020821,2]
[321954005,1712650242947,-522.26,0.00020821,2]
[321954009,1712650242959,-500.0,0.00020821,2]
[321954014,1712650242970,-500.0,0.00020821,2]
[321954019,1712650242980,-1270.3,0.00020821,2]
[321954025,1712650242991,-500.0,0.00020821,2]
[321954031,1712650243002,-516.92748973,0.00020821,2]
[321954035,1712650243013,-1611.97,0.00020821,2]
[321954040,1712650243024,-2013.33,0.00020821,2]
[321954044,1712650243034,-374.68294083,0.00020821,2]
[321954048,1712650243045,-1667.84,0.00020821,2]
[321954052,1712650243057,-514.02682516,0.00020821,2]
[321954056,1712650243074,-500.0,0.00020821,2]
[321954061,1712650243098,-500.0,0.00020821,2]
[321954065,1712650243110,-1600.99,0.00020821,2]
[321954069,1712650243122,-500.0,0.00020821,2]
[321954072,1712650243134,-500.0,0.00020821,2]
[321954076,1712650243149,-2243.15,0.00020821,2]
[321954080,1712650243160,-543.18824228,0.00020821,2]
[321954083,1712650243171,-1336.43,0.00020821,2]
[321954086,1712650243182,-616.42,0.00020821,2]
[321954089,1712650243194,-560.10409177,0.00020821,2]
[321954092,1712650243205,-500.0,0.00020821,2]
[321954095,1712650243216,-500.0,0.00020821,2]
[321954099,1712650243228,-500.0,0.00020821,2]
[321954102,1712650243238,-1273.64,0.00020821,2]
[321954106,1712650243249,-825.34,0.00020821,2]
[321954109,1712650243260,-500.0,0.00020821,2]
[321954112,1712650243271,-500.0,0.00020821,2]
[321954115,1712650243281,-2017.39,0.00020821,2]
[321954118,1712650243292,-571.82,0.00020821,2]
[321954121,1712650243302,-1110.03,0.00020821,2]
[321954124,1712650243312,-1042.8,0.00020821,2]
[321954126,1712650243323,-632.4,0.00020821,2]
[321954128,1712650243334,-2125.91,0.00020821,2]
[321954130,1712650243344,-338.95241975,0.00020821,2]
[321954132,1712650243354,-500.0,0.00020821,2]
[321954135,1712650243364,-587.36,0.00020821,2]
[321954138,1712650243374,-500.0,0.00020821,2]
[321954141,1712650243385,-548.67346448,0.00020821,2]
[321954145,1712650243396,-1511.99,0.00020821,2]
[321954149,1712650243406,-500.0,0.00020821,2]
[321954152,1712650243416,-510.44,0.00020821,2]
[321954155,1712650243426,-500.0,0.00020821,2]
[321954158,1712650243436,-500.0,0.00020821,2]
[321954161,1712650243446,-500.0,0.00020821,2]
[321954164,1712650243457,-505.46588889,0.00020821,2]
[321954167,1712650243467,-500.0,0.00020821,2]
[321954171,1712650243479,-500.0,0.00020821,2]
[321954174,1712650243490,-1650.62,0.00020821,2]
[321954177,1712650243500,-500.0,0.00020821,2]
[321954180,1712650243511,-500.0,0.00020821,2]
[321954182,1712650243521,-677.68,0.00020821,2]
[321954185,1712650243532,-500.0,0.00020821,2]
[321954187,1712650243543,-500.0,0.00020821,2]
[321954189,1712650243554,-500.0,0.00020821,2]
[321954191,1712650243564,-581.63,0.00020821,2]
[321954193,1712650243590,-500.0,0.00020821,2]
[321954195,1712650243600,-660.69,0.00020821,2]
[321954197,1712650243611,-500.0,0.00020821,2]
[321954200,1712650243622,-500.0,0.00020821,2]
[321954202,1712650243632,-500.0,0.00020821,2]
[321954204,1712650243642,-1791.63,0.00020821,2]
[321954206,1712650243652,-527.84,0.00020821,2]
[321954208,1712650243663,-500.0,0.00020821,2]
[321954210,1712650243674,-608.1,0.00020821,2]
[321954212,1712650243686,-500.0,0.00020821,2]
[321954215,1712650243697,-1316.79,0.00020821,2]
[321954217,1712650243708,-731.05,0.00020821,2]
[321954219,1712650243719,-500.0,0.00020821,2]
[321954220,1712650243730,-500.0,0.00020821,2]
[321954221,1712650243740,-547.11,0.00020821,2]
[321954222,1712650243752,-626.98,0.00020821,2]
[321954223,1712650243763,-500.0,0.00020821,2]
[321954224,1712650243773,-518.7,0.00020821,2]
[321954225,1712650243784,-500.0,0.00020821,2]
[321954226,1712650243794,-607.52,0.00020821,2]
[321954227,1712650243804,-500.0,0.00020821,2]
[321954228,1712650243815,-428.2922574,0.00020821,2]
[321954229,1712650243829,-455.7227879,0.00020821,2]
[321954232,1712650243840,-500.0,0.00020821,2]
[321954234,1712650243850,-600.03,0.00020821,2]
[321954236,1712650243862,-683.76,0.00020821,2]
[321954238,1712650243875,-500.0,0.00020821,2]
[321954240,1712650243886,-557.13,0.00020821,2]
[321954242,1712650243896,-730.25,0.00020821,2]
[321954244,1712650243907,-500.0,0.00020821,2]
[321954246,1712650243917,-506.83,0.00020821,2]
[321954248,1712650243927,-544.42,0.00020821,2]
[321954251,1712650243938,-500.0,0.00020821,2]
[321954253,1712650243948,-500.0,0.00020821,2]
[321954255,1712650243958,-303.81049751,0.00020821,2]
[321954257,1712650243968,-1148.74,0.00020821,2]
[321954259,1712650243979,-500.0,0.00020821,2]
[321954261,1712650243989,-500.0,0.00020821,2]
[321954263,1712650243999,-500.0,0.00020821,2]
[321954265,1712650244010,-1029.72,0.00020821,2]
[321954268,1712650244021,-500.0,0.00020821,2]
[321954270,1712650244032,-500.0,0.00020821,2]
[321954336,1712650244844,-500.0,0.00020821,2]
[321954340,1712650244872,-527.05,0.00020821,2]
[321954343,1712650244892,-562.06298359,0.00020821,2]
[321954345,1712650244903,-1779.44,0.00020821,2]
[321954347,1712650244914,-500.0,0.00020821,2]
[321954349,1712650244924,-797.36,0.00020821,2]
[321954351,1712650244935,-500.0,0.00020821,2]
[321954353,1712650244945,-1699.94,0.00020821,2]
[321954355,1712650244956,-1133.71,0.00020821,2]
[321954357,1712650244966,-700.84,0.00020821,2]
[321954359,1712650244976,-509.35112448,0.00020821,2]
[321954361,1712650244986,-664.95,0.00020821,2]
[321954363,1712650244996,-1189.81,0.00020821,2]
[321954365,1712650245006,-500.0,0.00020821,2]
[321954367,1712650245016,-2032.14,0.00020821,2]
[321954369,1712650245026,-500.0,0.00020821,2]
[321954371,1712650245037,-500.0,0.00020821,2]
[321954373,1712650245046,-500.0,0.00020821,2]
[321954375,1712650245056,-500.0,0.00020821,2]
[321954377,1712650245065,-1519.5,0.00020821,2]
[321954379,1712650245083,-789.82,0.00020821,2]
[321954381,1712650245093,-806.25,0.00020821,2]
[321954383,1712650245103,-500.0,0.00020821,2]
[321954385,1712650245113,-2251.62,0.00020821,2]
[321954387,1712650245124,-500.0,0.00020821,2]
[321954389,1712650245134,-571.37402884,0.00020821,2]
[321954391,1712650245144,-500.0,0.00020821,2]
[321954393,1712650245154,-895.87,0.00020821,2]
[321954395,1712650245164,-610.94853911,0.00020821,2]
[321954397,1712650245174,-510.84,0.00020821,2]
[321954399,1712650245184,-500.0,0.00020821,2]
[321954401,1712650245194,-768.57,0.00020821,2]
[321954403,1712650245203,-500.0,0.00020821,2]
[321954406,1712650245214,-500.0,0.00020821,2]
[321954407,1712650245223,-500.0,0.00020821,2]
[321954409,1712650245234,-500.0,0.00020821,2]
[321954411,1712650245243,-2479.41,0.00020821,2]
[321954413,1712650245253,-500.0,0.00020821,2]
[321954416,1712650245263,-2511.87,0.00020821,2]
[321954417,1712650245274,-501.04432098,0.00020821,2]
[321954420,1712650245284,-194.96169209,0.00020821,2]
[321954422,1712650245294,-500.0,0.00020821,2]
[321954424,1712650245305,-500.0,0.00020821,2]
[321954426,1712650245315,-500.0,0.00020821,2]
[321954428,1712650245332,-523.03,0.00020821,2]
[321954430,1712650245343,-500.0,0.00020821,2]
[321954432,1712650245353,-1620.04,0.00020821,2]
[321954434,1712650245363,-956.66,0.00020821,2]
[321954436,1712650245373,-500.0,0.00020821,2]
[321954438,1712650245382,-500.0,0.00020821,2]
[321954440,1712650245392,-540.92890172,0.00020821,2]
[321954443,1712650245402,-690.4,0.00020821,2]
[321954445,1712650245412,-500.0,0.00020821,2]
[321954447,1712650245421,-519.81776586,0.00020821,2]
[321954448,1712650245430,-644.14,0.00020821,2]
[321954451,1712650245441,-500.0,0.00020821,2]
[321954453,1712650245450,-500.0,0.00020821,2]
[321954455,1712650245459,-500.0,0.00020821,2]
[321954457,1712650245468,-2029.65,0.00020821,2]
[321954459,1712650245478,-528.36814489,0.00020821,2]
[321954461,1712650245487,-500.0,0.00020821,2]
[321954463,1712650245496,-516.07035791,0.00020821,2]
[321954465,1712650245506,-500.0,0.00020821,2]
[321954467,1712650245516,-500.0,0.00020821,2]
[321954469,1712650245526,-500.0,0.00020821,2]
[321954471,1712650245536,-500.0,0.00020821,2]
[321954473,1712650245545,-512.03826271,0.00020821,2]
[321954475,1712650245555,-500.0,0.00020821,2]
[321954477,1712650245564,-500.0,0.00020821,2]
[321954479,1712650245582,-500.0,0.00020821,2]
[321954481,1712650245592,-523.79,0.00020821,2]
[321954483,1712650245602,-500.0,0.00020821,2]
[321954485,1712650245611,-500.0,0.00020821,2]
[321954487,1712650245622,-500.0,0.00020821,2]
[321954489,1712650245632,-500.0,0.00020821,2]
[321954491,1712650245643,-500.0,0.00020821,2]
[321954493,1712650245652,-1875.56,0.00020821,2]
[321954495,1712650245662,-1761.48,0.00020821,2]
[321954497,1712650245672,-741.13,0.00020821,2]
[321954499,1712650245682,-530.30249857,0.00020821,2]
[321954501,1712650245691,-500.0,0.00020821,2]
[321954503,1712650245702,-500.0,0.00020821,2]
[321954505,1712650245711,-1670.87,0.00020821,2]
[321954507,1712650245721,-855.18,0.00020821,2]
[321954509,1712650245731,-820.21,0.00020821,2]
[321954511,1712650245742,-512.33846563,0.00020821,2]
[321954513,1712650245752,-506.62551477,0.00020821,2]
[321954515,1712650245762,-1380.56,0.00020821,2]
[321954517,1712650245773,-500.0,0.00020821,2]
[321954519,1712650245783,-500.0,0.00020821,2]
[321954521,1712650245794,-500.0,0.00020821,2]
[321954523,1712650245804,-651.48,0.00020821,2]
[321954525,1712650245816,-887.17,0.00020821,2]
[321954528,1712650245845,-1581.11,0.00020821,2]
[321954530,1712650245860,-500.0,0.00020821,2]
[321954533,1712650245874,-527.86923675,0.00020821,2]
[321954536,1712650245886,-500.0,0.00020821,2]
[321954537,1712650245897,-3598.23,0.00020821,2]
[321954540,1712650245908,-500.0,0.00020821,2]
[321954541,1712650245918,-500.0,0.00020821,2]
[321954543,1712650245930,-619.50972276,0.00020821,2]
[321954545,1712650245942,-1088.84,0.00020821,2]
[321954547,1712650245953,-500.0,0.00020821,2]
[321954550,1712650245965,-500.0,0.00020821,2]
[321954552,1712650245976,-1285.16,0.00020821,2]
[321954554,1712650245987,-500.0,0.00020821,2]
[321954556,1712650245999,-500.0,0.00020821,2]
[321954558,1712650246010,-265.24580433,0.00020821,2]
[321954560,1712650246021,-1082.36,0.00020821,2]
[321954562,1712650246032,-1241.11,0.00020821,2]
[321954564,1712650246042,-500.0,0.00020821,2]
[321954566,1712650246053,-500.0,0.00020821,2]
[321954568,1712650246065,-500.0,0.00020821,2]
[321954570,1712650246086,-1012.59,0.00020821,2]
[321954572,1712650246097,-500.0,0.00020821,2]
[321954574,1712650246108,-557.94,0.00020821,2]
[321954577,1712650246121,-500.0,0.00020821,2]
[321954579,1712650246131,-500.0,0.00020821,2]
[321954581,1712650246144,-500.0,0.00020821,2]
[321954583,1712650246158,-629.8,0.00020821,2]
[321954585,1712650246169,-500.0,0.00020821,2]
[321954587,1712650246180,-500.0,0.00020821,2]